[Event "Titled Tuesday Blitz April 4 Early 2023"]
[White "Budrewicz, Krzysztof"]
[Black "Avazkhonov, Alikhon"]
[WhiteFideId "1127950"]
[BlackFideId "14208504"]
[WhiteElo "2230"]
[BlackElo "1739"]
[Result "0-1"]
[Round "11"]
[TimeControl "180+2"]
[Date "2023.04.04"]
[WhiteClock "0:00:39"]
[BlackClock "0:00:14"]

1. d4 {[%clk 0:03:00]}  Nf6 {[%clk 0:02:50]} 2. c4 {[%clk 0:03:00]}  e6 {[%clk 0:02:50]} 3. Nf3 {[%clk 0:02:59]}  Bb4+ {[%clk 0:02:51]} 4. Nbd2 {[%clk 0:02:59]}  Qe7 {[%clk 0:02:51]} 5. e3 {[%clk 0:02:59]}  b6 {[%clk 0:02:50]} 6. Bd3 {[%clk 0:02:59]}  Bb7 {[%clk 0:02:51]} 7. O-O {[%clk 0:02:59]}  O-O {[%clk 0:02:50]} 8. Nb1 {[%clk 0:02:57]}  Qd8 {[%clk 0:02:43]} 9. a3 {[%clk 0:02:57]}  Be7 {[%clk 0:02:42]} 10. Nc3 {[%clk 0:02:57]}  d5 {[%clk 0:02:40]} 11. b3 {[%clk 0:02:56]}  Nbd7 {[%clk 0:02:39]} 12. Bb2 {[%clk 0:02:56]}  Ne4 {[%clk 0:02:36]} 13. Bxe4 {[%clk 0:02:54]}  dxe4 {[%clk 0:02:37]} 14. Nd2 {[%clk 0:02:54]}  f5 {[%clk 0:02:37]} 15. b4 {[%clk 0:02:48]}  e5 {[%clk 0:02:20]} 16. d5 {[%clk 0:02:44]}  c6 {[%clk 0:01:59]} 17. dxc6 {[%clk 0:02:40]}  Bxc6 {[%clk 0:02:00]} 18. Nd5 {[%clk 0:02:40]}  Bxd5 {[%clk 0:01:59]} 19. cxd5 {[%clk 0:02:40]}  Bd6 {[%clk 0:01:59]} 20. Nc4 {[%clk 0:02:40]}  Qe7 {[%clk 0:01:59]} 21. Qd2 {[%clk 0:02:35]}  b5 {[%clk 0:01:59]} 22. Na5 {[%clk 0:02:34]}  Nb6 {[%clk 0:01:57]} 23. Rac1 {[%clk 0:02:34]}  f4 {[%clk 0:01:53]} 24. exf4 {[%clk 0:02:31]}  exf4 {[%clk 0:01:54]} 25. Qd4 {[%clk 0:02:28]}  Rae8 {[%clk 0:01:45]} 26. Rfe1 {[%clk 0:02:26]}  f3 {[%clk 0:01:38]} 27. g3 {[%clk 0:02:26]}  Kh8 {[%clk 0:01:08]} 28. Re3 {[%clk 0:02:13]}  Qd7 {[%clk 0:01:03]} 29. Qd1 {[%clk 0:01:36]}  Nxd5 {[%clk 0:00:49]} 30. Bd4 {[%clk 0:01:24]}  Qh3 {[%clk 0:00:38]} 31. Qf1 {[%clk 0:01:23]}  Qxf1+ {[%clk 0:00:38]} 32. Kxf1 {[%clk 0:01:23]}  Nxe3+ {[%clk 0:00:39]} 33. Bxe3 {[%clk 0:01:23]}  Rc8 {[%clk 0:00:40]} 34. Rd1 {[%clk 0:01:22]}  Bb8 {[%clk 0:00:35]} 35. Rd4 {[%clk 0:01:13]}  Rfd8 {[%clk 0:00:34]} 36. Rxd8+ {[%clk 0:01:07]}  Rxd8 {[%clk 0:00:35]} 37. Ke1 {[%clk 0:01:08]}  Be5 {[%clk 0:00:31]} 38. Bd2 {[%clk 0:00:53]}  e3 {[%clk 0:00:31]} 39. fxe3 {[%clk 0:00:52]}  f2+ {[%clk 0:00:31]} 40. Kxf2 {[%clk 0:00:52]}  Rxd2+ {[%clk 0:00:26]} 41. Kf3 {[%clk 0:00:52]}  Rxh2 {[%clk 0:00:20]} 42. Nc6 {[%clk 0:00:53]}  Bd6 {[%clk 0:00:19]} 43. Nxa7 {[%clk 0:00:52]}  Rh3 {[%clk 0:00:18]} 44. Nxb5 {[%clk 0:00:53]}  Rxg3+ {[%clk 0:00:19]} 45. Kf2 {[%clk 0:00:50]}  Rg6 {[%clk 0:00:18]} 46. Nd4 {[%clk 0:00:47]}  h5 {[%clk 0:00:18]} 47. Nf3 {[%clk 0:00:40]}  Rf6 {[%clk 0:00:17]} 48. Kg2 {[%clk 0:00:40]}  Rxf3 {[%clk 0:00:16]} 49. Kxf3 {[%clk 0:00:40]}  g5 {[%clk 0:00:17]} 50. b5 {[%clk 0:00:38]}  g4+ {[%clk 0:00:14]} 51. Kg2 {[%clk 0:00:37]}  Bxa3 {[%clk 0:00:14]} 52. b6 {[%clk 0:00:37]}  Bd6 {[%clk 0:00:15]} 53. b7 {[%clk 0:00:38]}  h4 {[%clk 0:00:15]} 54. b8=Q+ {[%clk 0:00:39]}  Bxb8 {[%clk 0:00:14]} 0-1


[Site "https://www.chess.com"]

[Event "Titled Tuesday Blitz April 4 Early 2023"]
[White "Francisco Guecamburu, Candela Be"]
[Black "Manon-og, Ramon Jr."]
[WhiteFideId "160911"]
[BlackFideId "5200776"]
[WhiteElo "2326"]
[BlackElo "2392"]
[Result "1-0"]
[Round "11"]
[TimeControl "180+2"]
[Date "2023.04.04"]
[WhiteClock "0:01:26"]
[BlackClock "0:00:17"]

1. e4 {[%clk 0:03:00]}  c5 {[%clk 0:02:59]} 2. Nf3 {[%clk 0:03:01]}  d6 {[%clk 0:03:00]} 3. Bb5+ {[%clk 0:03:01]}  Nd7 {[%clk 0:02:59]} 4. d4 {[%clk 0:03:01]}  cxd4 {[%clk 0:02:59]} 5. Qxd4 {[%clk 0:03:02]}  a6 {[%clk 0:03:00]} 6. Be2 {[%clk 0:03:02]}  Ngf6 {[%clk 0:02:47]} 7. O-O {[%clk 0:03:02]}  g6 {[%clk 0:02:47]} 8. Rd1 {[%clk 0:03:00]}  Bg7 {[%clk 0:02:47]} 9. Nc3 {[%clk 0:02:58]}  O-O {[%clk 0:02:47]} 10. e5 {[%clk 0:02:58]}  dxe5 {[%clk 0:02:47]} 11. Nxe5 {[%clk 0:02:59]}  Qa5 {[%clk 0:02:37]} 12. Nc4 {[%clk 0:02:52]}  Qc5 {[%clk 0:02:24]} 13. Qxc5 {[%clk 0:02:42]}  Nxc5 {[%clk 0:02:25]} 14. Nb6 {[%clk 0:02:40]}  Rb8 {[%clk 0:02:08]} 15. Bf4 {[%clk 0:02:40]}  Bf5 {[%clk 0:02:08]} 16. Bxb8 {[%clk 0:02:36]}  Rxb8 {[%clk 0:02:09]} 17. Bf3 {[%clk 0:02:25]}  Bxc2 {[%clk 0:02:06]} 18. Rd2 {[%clk 0:02:25]}  Bf5 {[%clk 0:02:04]} 19. Re1 {[%clk 0:02:25]}  Bh6 {[%clk 0:01:52]} 20. Rd4 {[%clk 0:02:16]}  Ne6 {[%clk 0:01:41]} 21. Rc4 {[%clk 0:02:14]}  Ng5 {[%clk 0:01:22]} 22. Rxe7 {[%clk 0:02:09]}  Nxf3+ {[%clk 0:01:22]} 23. gxf3 {[%clk 0:02:10]}  Bf8 {[%clk 0:01:02]} 24. Re1 {[%clk 0:02:02]}  Nh5 {[%clk 0:00:54]} 25. Ncd5 {[%clk 0:01:57]}  Be6 {[%clk 0:00:47]} 26. Rcc1 {[%clk 0:01:51]}  Bd6 {[%clk 0:00:43]} 27. Rcd1 {[%clk 0:01:41]}  Nf4 {[%clk 0:00:38]} 28. Nf6+ {[%clk 0:01:38]}  Kg7 {[%clk 0:00:33]} 29. Rxd6 {[%clk 0:01:30]}  Kxf6 {[%clk 0:00:28]} 30. Rdxe6+ {[%clk 0:01:26]}  fxe6 {[%clk 0:00:17]} 31. Nd7+ {[%clk 0:01:26]} 1-0


[Site "https://www.chess.com"]

[Event "Titled Tuesday Blitz April 4 Early 2023"]
[White "crosky"]
[Black "Thecourseoisildur"]
[WhiteElo "2375"]
[BlackElo "2495"]
[Result "0-1"]
[Round "11"]
[TimeControl "180+2"]
[Date "2023.04.04"]
[WhiteClock "0:00:02"]
[BlackClock "0:00:02"]

1. c4 {[%clk 0:03:00]}  g6 {[%clk 0:02:58]} 2. Nc3 {[%clk 0:03:00]}  Bg7 {[%clk 0:02:57]} 3. d4 {[%clk 0:03:00]}  d6 {[%clk 0:02:57]} 4. e4 {[%clk 0:02:59]}  c5 {[%clk 0:02:57]} 5. d5 {[%clk 0:02:46]}  Bxc3+ {[%clk 0:02:56]} 6. bxc3 {[%clk 0:02:47]}  e5 {[%clk 0:02:57]} 7. dxe6 {[%clk 0:02:30]}  Bxe6 {[%clk 0:02:56]} 8. Qb3 {[%clk 0:02:19]}  Qe7 {[%clk 0:02:29]} 9. Bf4 {[%clk 0:02:12]}  Nc6 {[%clk 0:02:24]} 10. O-O-O {[%clk 0:02:05]}  O-O-O {[%clk 0:02:20]} 11. Nf3 {[%clk 0:02:02]}  Bg4 {[%clk 0:02:07]} 12. Bd3 {[%clk 0:01:47]}  Bxf3 {[%clk 0:02:02]} 13. gxf3 {[%clk 0:01:47]}  g5 {[%clk 0:02:02]} 14. Bg3 {[%clk 0:01:42]}  Ne5 {[%clk 0:02:01]} 15. Be2 {[%clk 0:01:37]}  Nf6 {[%clk 0:02:00]} 16. h4 {[%clk 0:01:31]}  h6 {[%clk 0:01:53]} 17. Rd2 {[%clk 0:01:18]}  g4 {[%clk 0:01:19]} 18. f4 {[%clk 0:00:50]}  Nc6 {[%clk 0:00:58]} 19. Re1 {[%clk 0:00:36]}  h5 {[%clk 0:00:38]} 20. f3 {[%clk 0:00:35]}  Rhg8 {[%clk 0:00:33]} 21. fxg4 {[%clk 0:00:33]}  hxg4 {[%clk 0:00:23]} 22. Bf1 {[%clk 0:00:29]}  Nh5 {[%clk 0:00:18]} 23. Bf2 {[%clk 0:00:09]}  g3 {[%clk 0:00:17]} 24. Bg1 {[%clk 0:00:09]}  Nxf4 {[%clk 0:00:16]} 25. e5 {[%clk 0:00:07]}  Nxe5 {[%clk 0:00:12]} 26. Qa4 {[%clk 0:00:04]}  Kb8 {[%clk 0:00:06]} 27. Rb2 {[%clk 0:00:04]}  Qd7 {[%clk 0:00:04]} 28. Qb3 {[%clk 0:00:04]}  Ned3+ {[%clk 0:00:03]} 29. Kd1 {[%clk 0:00:02]}  Nxb2+ {[%clk 0:00:02]} 30. Qxb2 {[%clk 0:00:02]}  d5 {[%clk 0:00:03]} 31. cxd5 {[%clk 0:00:02]}  Qxd5+ {[%clk 0:00:02]} 32. Kc2 {[%clk 0:00:02]}  g2 {[%clk 0:00:02]} 33. Be2 {[%clk 0:00:02]}  Qe4+ {[%clk 0:00:02]} 34. Kc1 {[%clk 0:00:02]}  Nxe2+ {[%clk 0:00:02]} 35. Rxe2 {[%clk 0:00:02]}  Qd3 {[%clk 0:00:01]} 36. Qc2 {[%clk 0:00:02]}  Qxc2+ {[%clk 0:00:02]} 37. Kxc2 {[%clk 0:00:02]}  c4 {[%clk 0:00:02]} 38. Rf2 {[%clk 0:00:02]}  Rd7 {[%clk 0:00:02]} 39. Rf4 {[%clk 0:00:02]}  Rd3 {[%clk 0:00:01]} 40. Rxc4 {[%clk 0:00:02]}  Rh3 {[%clk 0:00:02]} 0-1


[Site "https://www.chess.com"]

[Event "Titled Tuesday Blitz April 4 Early 2023"]
[White "Garrido, Denis"]
[Black "Przybylski, Wojciech"]
[WhiteFideId "601217"]
[BlackFideId "1117599"]
[WhiteElo "2365"]
[BlackElo "2222"]
[Result "0-1"]
[Round "11"]
[TimeControl "180+2"]
[Date "2023.04.04"]
[WhiteClock "0:00:18"]
[BlackClock "0:01:00"]

1. e4 {[%clk 0:03:00]}  c5 {[%clk 0:02:59]} 2. Nf3 {[%clk 0:03:00]}  e6 {[%clk 0:02:59]} 3. d4 {[%clk 0:02:59]}  cxd4 {[%clk 0:02:59]} 4. Nxd4 {[%clk 0:03:00]}  Nc6 {[%clk 0:02:59]} 5. Nc3 {[%clk 0:03:00]}  Qc7 {[%clk 0:03:00]} 6. Qd3 {[%clk 0:02:59]}  Nf6 {[%clk 0:02:59]} 7. Ndb5 {[%clk 0:02:58]}  Qb8 {[%clk 0:02:59]} 8. Qg3 {[%clk 0:02:59]}  d6 {[%clk 0:02:57]} 9. Be3 {[%clk 0:02:59]}  Bd7 {[%clk 0:02:47]} 10. O-O-O {[%clk 0:02:56]}  Ne5 {[%clk 0:02:45]} 11. f4 {[%clk 0:02:43]}  Neg4 {[%clk 0:02:45]} 12. Bg1 {[%clk 0:02:42]}  a6 {[%clk 0:02:44]} 13. Nd4 {[%clk 0:02:42]}  h5 {[%clk 0:02:42]} 14. h3 {[%clk 0:02:40]}  Nh6 {[%clk 0:02:42]} 15. e5 {[%clk 0:02:35]}  dxe5 {[%clk 0:02:40]} 16. fxe5 {[%clk 0:02:35]}  Nd5 {[%clk 0:02:32]} 17. Nxd5 {[%clk 0:02:34]}  exd5 {[%clk 0:02:32]} 18. Bh2 {[%clk 0:01:57]}  h4 {[%clk 0:02:27]} 19. Qg5 {[%clk 0:01:49]}  Be7 {[%clk 0:02:25]} 20. Qxg7 {[%clk 0:01:49]}  Rg8 {[%clk 0:02:25]} 21. Qxh6 {[%clk 0:01:48]}  Bg5+ {[%clk 0:02:24]} 22. Qxg5 {[%clk 0:01:48]}  Rxg5 {[%clk 0:02:24]} 23. e6 {[%clk 0:01:48]}  Qc8 {[%clk 0:02:17]} 24. exd7+ {[%clk 0:01:48]}  Qxd7 {[%clk 0:02:17]} 25. Rd3 {[%clk 0:01:22]}  Rg6 {[%clk 0:02:11]} 26. Be2 {[%clk 0:01:13]}  Kf8 {[%clk 0:02:07]} 27. Bf3 {[%clk 0:01:11]}  Re8 {[%clk 0:02:06]} 28. Rhd1 {[%clk 0:01:08]}  Rd8 {[%clk 0:01:55]} 29. Ne2 {[%clk 0:01:06]}  Qa4 {[%clk 0:01:53]} 30. Kb1 {[%clk 0:01:05]}  d4 {[%clk 0:01:43]} 31. Nxd4 {[%clk 0:01:00]}  Kg8 {[%clk 0:01:42]} 32. Be5 {[%clk 0:00:51]}  Qa5 {[%clk 0:01:35]} 33. Bf4 {[%clk 0:00:49]}  Re8 {[%clk 0:01:32]} 34. Bd2 {[%clk 0:00:45]}  Qc7 {[%clk 0:01:26]} 35. Bc3 {[%clk 0:00:44]}  Rd6 {[%clk 0:01:21]} 36. Nf5 {[%clk 0:00:25]}  Rxd3 {[%clk 0:01:14]} 37. Rxd3 {[%clk 0:00:26]}  Qf4 {[%clk 0:01:12]} 38. Bg4 {[%clk 0:00:20]}  b5 {[%clk 0:01:03]} 39. b3 {[%clk 0:00:20]}  b4 {[%clk 0:01:03]} 40. Bf6 {[%clk 0:00:18]}  Re1+ {[%clk 0:01:01]} 41. Kb2 {[%clk 0:00:18]}  Qc1# {[%clk 0:01:00]} 0-1


[Site "https://www.chess.com"]

[Event "Titled Tuesday Blitz April 4 Early 2023"]
[White "Fajdetic, Hrvoje"]
[Black "Shapiro, Viktor"]
[WhiteFideId "14501945"]
[BlackFideId "4175700"]
[WhiteElo "2185"]
[BlackElo "2152"]
[Result "0-1"]
[Round "11"]
[TimeControl "180+2"]
[Date "2023.04.04"]
[WhiteClock "0:00:26"]
[BlackClock "0:01:03"]

1. f4 {[%clk 0:03:00]}  c5 {[%clk 0:02:58]} 2. e4 {[%clk 0:02:59]}  Nc6 {[%clk 0:02:57]} 3. Nf3 {[%clk 0:02:59]}  g6 {[%clk 0:02:57]} 4. d3 {[%clk 0:02:58]}  Bg7 {[%clk 0:02:57]} 5. Be2 {[%clk 0:02:58]}  e6 {[%clk 0:02:57]} 6. O-O {[%clk 0:02:59]}  Nge7 {[%clk 0:02:57]} 7. Qe1 {[%clk 0:02:58]}  O-O {[%clk 0:02:53]} 8. Qh4 {[%clk 0:02:58]}  f5 {[%clk 0:02:53]} 9. c3 {[%clk 0:02:47]}  b6 {[%clk 0:02:42]} 10. a4 {[%clk 0:02:45]}  Bb7 {[%clk 0:02:26]} 11. Na3 {[%clk 0:02:36]}  h6 {[%clk 0:02:21]} 12. Nc4 {[%clk 0:02:34]}  d5 {[%clk 0:02:19]} 13. exd5 {[%clk 0:02:18]}  exd5 {[%clk 0:02:19]} 14. Nce5 {[%clk 0:02:18]}  Nxe5 {[%clk 0:02:19]} 15. Nxe5 {[%clk 0:02:16]}  Qd6 {[%clk 0:01:59]} 16. d4 {[%clk 0:02:05]}  Nc6 {[%clk 0:01:46]} 17. g4 {[%clk 0:01:38]}  cxd4 {[%clk 0:01:43]} 18. gxf5 {[%clk 0:01:35]}  gxf5 {[%clk 0:01:35]} 19. cxd4 {[%clk 0:01:18]}  Nxd4 {[%clk 0:01:35]} 20. Bd3 {[%clk 0:01:12]}  Nb3 {[%clk 0:01:13]} 21. Be3 {[%clk 0:00:56]}  Nxa1 {[%clk 0:01:12]} 22. Rxa1 {[%clk 0:00:56]}  d4 {[%clk 0:01:11]} 23. Bc4+ {[%clk 0:00:48]}  Bd5 {[%clk 0:01:11]} 24. Bd2 {[%clk 0:00:31]}  Bxc4 {[%clk 0:01:07]} 25. Nxc4 {[%clk 0:00:31]}  Qg6+ {[%clk 0:01:07]} 26. Kh1 {[%clk 0:00:27]}  Qc6+ {[%clk 0:01:06]} 27. Kg1 {[%clk 0:00:26]}  Qxc4 {[%clk 0:01:06]} 28. Kf2 {[%clk 0:00:26]}  Rfe8 {[%clk 0:01:03]} 0-1


[Site "https://www.chess.com"]

[Event "Titled Tuesday Blitz April 4 Early 2023"]
[White "Petrova, Irina"]
[Black "Aponte Ramos, Argimiro"]
[WhiteFideId "14124122"]
[BlackFideId "3900568"]
[WhiteElo "2084"]
[BlackElo "2216"]
[Result "0-1"]
[Round "11"]
[TimeControl "180+2"]
[Date "2023.04.04"]
[WhiteClock "0:00:03"]
[BlackClock "0:00:13"]

1. e4 {[%clk 0:03:00]}  a6 {[%clk 0:02:59]} 2. d4 {[%clk 0:03:00]}  b5 {[%clk 0:02:59]} 3. Nf3 {[%clk 0:03:00]}  Bb7 {[%clk 0:03:00]} 4. Bd3 {[%clk 0:03:00]}  e6 {[%clk 0:03:00]} 5. O-O {[%clk 0:02:59]}  Nf6 {[%clk 0:03:00]} 6. Re1 {[%clk 0:02:58]}  c5 {[%clk 0:03:00]} 7. c3 {[%clk 0:02:58]}  Be7 {[%clk 0:02:59]} 8. Nbd2 {[%clk 0:02:55]}  cxd4 {[%clk 0:02:59]} 9. cxd4 {[%clk 0:02:56]}  O-O {[%clk 0:02:59]} 10. a3 {[%clk 0:02:52]}  d6 {[%clk 0:02:58]} 11. Nf1 {[%clk 0:02:48]}  Nbd7 {[%clk 0:02:58]} 12. Ng3 {[%clk 0:02:48]}  Re8 {[%clk 0:02:58]} 13. Bd2 {[%clk 0:02:44]}  Nf8 {[%clk 0:02:58]} 14. Bc3 {[%clk 0:02:43]}  Ng6 {[%clk 0:02:57]} 15. Rc1 {[%clk 0:02:38]}  Rc8 {[%clk 0:02:56]} 16. e5 {[%clk 0:02:24]}  Nd5 {[%clk 0:02:48]} 17. Ne4 {[%clk 0:02:18]}  dxe5 {[%clk 0:02:43]} 18. dxe5 {[%clk 0:02:18]}  Ndf4 {[%clk 0:02:36]} 19. Bb1 {[%clk 0:02:11]}  Qb6 {[%clk 0:02:27]} 20. Bd4 {[%clk 0:02:06]}  Qa5 {[%clk 0:02:23]} 21. Bc3 {[%clk 0:01:53]}  Qb6 {[%clk 0:02:21]} 22. Bd4 {[%clk 0:01:32]}  Qd8 {[%clk 0:02:15]} 23. Rxc8 {[%clk 0:01:30]}  Qxc8 {[%clk 0:02:10]} 24. Nd6 {[%clk 0:01:27]}  Bxd6 {[%clk 0:02:08]} 25. exd6 {[%clk 0:01:28]}  Qc6 {[%clk 0:02:06]} 26. Be4 {[%clk 0:01:19]}  Qd7 {[%clk 0:02:02]} 27. Bxb7 {[%clk 0:01:13]}  Qxb7 {[%clk 0:02:03]} 28. g3 {[%clk 0:01:04]}  Nd5 {[%clk 0:01:52]} 29. h4 {[%clk 0:01:01]}  h6 {[%clk 0:01:47]} 30. h5 {[%clk 0:01:00]}  Nf8 {[%clk 0:01:45]} 31. Ne5 {[%clk 0:00:59]}  Nd7 {[%clk 0:01:43]} 32. Qg4 {[%clk 0:00:47]}  N7f6 {[%clk 0:01:42]} 33. Qf3 {[%clk 0:00:37]}  Rd8 {[%clk 0:01:42]} 34. Bc5 {[%clk 0:00:26]}  Qc8 {[%clk 0:01:36]} 35. b4 {[%clk 0:00:25]}  Qb7 {[%clk 0:01:22]} 36. g4 {[%clk 0:00:12]}  Nh7 {[%clk 0:01:17]} 37. Qg2 {[%clk 0:00:12]}  Ng5 {[%clk 0:01:15]} 38. f4 {[%clk 0:00:13]}  Nh7 {[%clk 0:01:13]} 39. g5 {[%clk 0:00:12]}  hxg5 {[%clk 0:01:08]} 40. fxg5 {[%clk 0:00:13]}  Nf8 {[%clk 0:01:07]} 41. g6 {[%clk 0:00:13]}  fxg6 {[%clk 0:00:57]} 42. hxg6 {[%clk 0:00:14]}  Rd7 {[%clk 0:00:41]} 43. Rf1 {[%clk 0:00:13]}  Nf6 {[%clk 0:00:37]} 44. Nxd7 {[%clk 0:00:10]}  Qxd7 {[%clk 0:00:36]} 45. Qh3 {[%clk 0:00:08]}  Nxg6 {[%clk 0:00:34]} 46. Re1 {[%clk 0:00:08]}  Nf4 {[%clk 0:00:32]} 47. Qf3 {[%clk 0:00:07]}  N6d5 {[%clk 0:00:30]} 48. Re4 {[%clk 0:00:05]}  g5 {[%clk 0:00:27]} 49. Re1 {[%clk 0:00:04]}  Kf7 {[%clk 0:00:21]} 50. Qg4 {[%clk 0:00:04]}  Kg6 {[%clk 0:00:17]} 51. Be3 {[%clk 0:00:04]}  Nxe3 {[%clk 0:00:14]} 52. Rxe3 {[%clk 0:00:04]}  Qxd6 {[%clk 0:00:15]} 53. Qf3 {[%clk 0:00:03]}  Qd4 {[%clk 0:00:13]} 0-1


[Site "https://www.chess.com"]

[Event "Titled Tuesday Blitz April 4 Early 2023"]
[White "Iskusnyh, Sergei"]
[Black "nicolasulaneobelassi"]
[WhiteFideId "4120027"]
[WhiteElo "2492"]
[BlackElo "2311"]
[Result "1-0"]
[Round "11"]
[TimeControl "180+2"]
[Date "2023.04.04"]
[WhiteClock "0:01:11"]
[BlackClock "0:00:28"]

1. d4 {[%clk 0:03:00]}  Nf6 {[%clk 0:02:58]} 2. c4 {[%clk 0:03:00]}  e6 {[%clk 0:02:58]} 3. g3 {[%clk 0:03:00]}  c5 {[%clk 0:02:58]} 4. Nf3 {[%clk 0:03:00]}  cxd4 {[%clk 0:02:55]} 5. Nxd4 {[%clk 0:03:01]}  d5 {[%clk 0:02:55]} 6. Bg2 {[%clk 0:03:00]}  e5 {[%clk 0:02:55]} 7. Nf3 {[%clk 0:02:59]}  d4 {[%clk 0:02:55]} 8. O-O {[%clk 0:02:58]}  Nc6 {[%clk 0:02:55]} 9. e3 {[%clk 0:02:59]}  Be7 {[%clk 0:02:46]} 10. exd4 {[%clk 0:02:58]}  exd4 {[%clk 0:02:46]} 11. Bf4 {[%clk 0:02:56]}  O-O {[%clk 0:02:44]} 12. Nbd2 {[%clk 0:02:54]}  Be6 {[%clk 0:02:30]} 13. Ne5 {[%clk 0:02:53]}  Qb6 {[%clk 0:02:19]} 14. Qb3 {[%clk 0:02:45]}  Nxe5 {[%clk 0:02:07]} 15. Bxe5 {[%clk 0:02:44]}  Qxb3 {[%clk 0:01:49]} 16. axb3 {[%clk 0:02:37]}  Bb4 {[%clk 0:01:44]} 17. Nf3 {[%clk 0:02:15]}  d3 {[%clk 0:01:33]} 18. Nd4 {[%clk 0:01:54]}  Rfd8 {[%clk 0:01:25]} 19. Nxe6 {[%clk 0:01:50]}  fxe6 {[%clk 0:01:23]} 20. Bxb7 {[%clk 0:01:50]}  d2 {[%clk 0:01:05]} 21. Bxf6 {[%clk 0:01:49]}  gxf6 {[%clk 0:01:04]} 22. Bxa8 {[%clk 0:01:48]}  Rxa8 {[%clk 0:01:04]} 23. Ra6 {[%clk 0:01:47]}  Kf7 {[%clk 0:01:02]} 24. Rd1 {[%clk 0:01:45]}  e5 {[%clk 0:00:42]} 25. Kf1 {[%clk 0:01:16]}  Kg6 {[%clk 0:00:42]} 26. Ke2 {[%clk 0:01:14]}  Rd8 {[%clk 0:00:42]} 27. Rxa7 {[%clk 0:01:12]}  e4 {[%clk 0:00:37]} 28. Rb7 {[%clk 0:01:12]}  Ba5 {[%clk 0:00:28]} 29. b4 {[%clk 0:01:11]} 1-0


[Site "https://www.chess.com"]

[Event "Titled Tuesday Blitz April 4 Early 2023"]
[White "Matveeva, Olga"]
[Black "Turzo, Attila"]
[WhiteFideId "24107018"]
[BlackFideId "704954"]
[WhiteElo "2056"]
[BlackElo "2498"]
[Result "0-1"]
[Round "11"]
[TimeControl "180+2"]
[Date "2023.04.04"]
[WhiteClock "0:00:01"]
[BlackClock "0:00:18"]

1. d4 {[%clk 0:03:00]}  Nf6 {[%clk 0:02:59]} 2. c4 {[%clk 0:02:59]}  c5 {[%clk 0:03:00]} 3. d5 {[%clk 0:02:58]}  b5 {[%clk 0:03:00]} 4. cxb5 {[%clk 0:02:59]}  a6 {[%clk 0:03:01]} 5. bxa6 {[%clk 0:03:00]}  g6 {[%clk 0:03:01]} 6. Nc3 {[%clk 0:03:00]}  Bg7 {[%clk 0:03:01]} 7. g3 {[%clk 0:03:00]}  O-O {[%clk 0:02:59]} 8. Bg2 {[%clk 0:03:01]}  d6 {[%clk 0:02:59]} 9. Nf3 {[%clk 0:03:00]}  Nxa6 {[%clk 0:02:57]} 10. O-O {[%clk 0:03:00]}  Bf5 {[%clk 0:02:53]} 11. Nh4 {[%clk 0:02:55]}  Bg4 {[%clk 0:02:50]} 12. h3 {[%clk 0:02:53]}  Bd7 {[%clk 0:02:48]} 13. Rb1 {[%clk 0:02:38]}  Qa5 {[%clk 0:02:36]} 14. Bd2 {[%clk 0:02:34]}  Rfb8 {[%clk 0:02:35]} 15. b3 {[%clk 0:02:31]}  Ne8 {[%clk 0:02:28]} 16. Qc2 {[%clk 0:02:29]}  Nb4 {[%clk 0:02:28]} 17. Qb2 {[%clk 0:02:23]}  Nxa2 {[%clk 0:02:22]} 18. Qxa2 {[%clk 0:01:34]}  Qxa2 {[%clk 0:01:57]} 19. Nxa2 {[%clk 0:01:35]}  Rxa2 {[%clk 0:01:57]} 20. Rfd1 {[%clk 0:01:30]}  Nc7 {[%clk 0:01:53]} 21. e4 {[%clk 0:01:14]}  Nb5 {[%clk 0:01:37]} 22. Bf1 {[%clk 0:01:12]}  Nd4 {[%clk 0:01:33]} 23. b4 {[%clk 0:01:09]}  Rxd2 {[%clk 0:01:24]} 24. Rxd2 {[%clk 0:01:07]}  g5 {[%clk 0:01:25]} 25. Rxd4 {[%clk 0:00:57]}  Bxd4 {[%clk 0:01:15]} 26. Nf3 {[%clk 0:00:48]}  Bf6 {[%clk 0:01:09]} 27. b5 {[%clk 0:00:47]}  e6 {[%clk 0:00:55]} 28. dxe6 {[%clk 0:00:46]}  fxe6 {[%clk 0:00:54]} 29. Kg2 {[%clk 0:00:45]}  Kf7 {[%clk 0:00:53]} 30. Bc4 {[%clk 0:00:44]}  Bd8 {[%clk 0:00:49]} 31. h4 {[%clk 0:00:40]}  h6 {[%clk 0:00:45]} 32. hxg5 {[%clk 0:00:39]}  hxg5 {[%clk 0:00:46]} 33. g4 {[%clk 0:00:36]}  Ra8 {[%clk 0:00:27]} 34. b6 {[%clk 0:00:31]}  Rb8 {[%clk 0:00:26]} 35. b7 {[%clk 0:00:31]}  Bc6 {[%clk 0:00:27]} 36. Ba6 {[%clk 0:00:23]}  Bxe4 {[%clk 0:00:27]} 37. Rb3 {[%clk 0:00:15]}  d5 {[%clk 0:00:24]} 38. Kf1 {[%clk 0:00:08]}  c4 {[%clk 0:00:23]} 39. Ne5+ {[%clk 0:00:04]}  Ke8 {[%clk 0:00:18]} 40. Rb5 {[%clk 0:00:01]}  Bc7 {[%clk 0:00:18]} 0-1


[Site "https://www.chess.com"]

[Event "Titled Tuesday Blitz April 4 Early 2023"]
[White "Jovic, Stanoje"]
[Black "Kujawski, Adam"]
[WhiteFideId "905020"]
[BlackFideId "1100920"]
[WhiteElo "2236"]
[BlackElo "2054"]
[Result "1-0"]
[Round "11"]
[TimeControl "180+2"]
[Date "2023.04.04"]
[WhiteClock "0:00:45"]
[BlackClock "0:00:01"]

1. c4 {[%clk 0:03:00]}  e5 {[%clk 0:02:25]} 2. g3 {[%clk 0:03:00]}  Nc6 {[%clk 0:02:24]} 3. Bg2 {[%clk 0:03:00]}  d6 {[%clk 0:02:24]} 4. Nc3 {[%clk 0:03:00]}  Be6 {[%clk 0:02:24]} 5. d3 {[%clk 0:02:59]}  Qd7 {[%clk 0:02:21]} 6. b4 {[%clk 0:02:56]}  a6 {[%clk 0:02:15]} 7. a4 {[%clk 0:02:55]}  Nxb4 {[%clk 0:02:13]} 8. Bxb7 {[%clk 0:02:54]}  Rb8 {[%clk 0:02:13]} 9. Bg2 {[%clk 0:02:53]}  d5 {[%clk 0:02:06]} 10. cxd5 {[%clk 0:02:41]}  Nxd5 {[%clk 0:02:05]} 11. Nxd5 {[%clk 0:02:40]}  Bxd5 {[%clk 0:02:04]} 12. Bxd5 {[%clk 0:02:39]}  Qxd5 {[%clk 0:02:03]} 13. Nf3 {[%clk 0:02:39]}  e4 {[%clk 0:01:16]} 14. dxe4 {[%clk 0:02:35]}  Qxd1+ {[%clk 0:01:16]} 15. Kxd1 {[%clk 0:02:34]}  Nf6 {[%clk 0:01:16]} 16. e5 {[%clk 0:02:27]}  Ne4 {[%clk 0:01:07]} 17. Be3 {[%clk 0:02:25]}  Bb4 {[%clk 0:01:04]} 18. Kc2 {[%clk 0:02:22]}  O-O {[%clk 0:00:52]} 19. Rhd1 {[%clk 0:02:22]}  c5 {[%clk 0:00:41]} 20. Rd7 {[%clk 0:02:18]}  a5 {[%clk 0:00:34]} 21. Kd3 {[%clk 0:02:13]}  f5 {[%clk 0:00:29]} 22. Ng5 {[%clk 0:01:54]}  c4+ {[%clk 0:00:25]} 23. Kc2 {[%clk 0:01:47]}  Rbd8 {[%clk 0:00:09]} 24. Rad1 {[%clk 0:01:37]}  Rxd7 {[%clk 0:00:09]} 25. Rxd7 {[%clk 0:01:37]}  Nxg5 {[%clk 0:00:08]} 26. Bxg5 {[%clk 0:01:36]}  h6 {[%clk 0:00:08]} 27. Be3 {[%clk 0:01:31]}  Rc8 {[%clk 0:00:06]} 28. Bd4 {[%clk 0:01:25]}  c3 {[%clk 0:00:05]} 29. e6 {[%clk 0:01:24]}  g5 {[%clk 0:00:04]} 30. Rg7+ {[%clk 0:01:19]}  Kf8 {[%clk 0:00:04]} 31. Rh7 {[%clk 0:01:17]}  Re8 {[%clk 0:00:03]} 32. Rh8+ {[%clk 0:01:14]}  Ke7 {[%clk 0:00:03]} 33. Rxh6 {[%clk 0:01:14]}  Kd6 {[%clk 0:00:02]} 34. h4 {[%clk 0:01:10]}  Kd5 {[%clk 0:00:02]} 35. e3 {[%clk 0:01:08]}  f4 {[%clk 0:00:02]} 36. hxg5 {[%clk 0:01:07]}  fxg3 {[%clk 0:00:02]} 37. fxg3 {[%clk 0:01:07]}  Rf8 {[%clk 0:00:03]} 38. Rf6 {[%clk 0:01:05]}  Rh8 {[%clk 0:00:02]} 39. Rf2 {[%clk 0:01:03]}  Rh1 {[%clk 0:00:02]} 40. g6 {[%clk 0:01:02]}  Ra1 {[%clk 0:00:01]} 41. Bxc3 {[%clk 0:00:46]}  Kxe6 {[%clk 0:00:01]} 42. Bxa1 {[%clk 0:00:45]} 1-0


[Site "https://www.chess.com"]